lending/lending_fUSD_20241120
["ID","MTS","AMOUNT","RATE_DAILY","PERIOD"]
[342815517,1732143242439,-500.0,0.00061643,120]
[342815518,1732143242449,-500.0,0.00061643,120]
[342815519,1732143242459,-799.65,0.00061643,120]
[342815520,1732143242469,-500.0,0.00061643,120]
[342815521,1732143242479,-821.37,0.00061643,120]
[342815522,1732143242489,-1270.46,0.00061643,120]
[342815523,1732143242498,-500.0,0.00061643,120]
[342815524,1732143242508,-500.0,0.00061643,120]
[342815525,1732143242517,-1026.3,0.00061643,120]
[342815526,1732143242528,-654.97,0.00061643,120]
[342815527,1732143242537,-1162.69,0.00061643,120]
[342815528,1732143242546,-1475.7,0.00061643,120]
[342815529,1732143242556,-500.0,0.00061643,120]
[342815530,1732143242566,-534.81,0.00061643,120]
[342815531,1732143242575,-500.0,0.00061643,120]
[342815532,1732143242586,-536.1,0.00061643,120]
[342815533,1732143242595,-1309.27,0.00061643,120]
[342815534,1732143242604,-556.25,0.00061643,120]
[342815535,1732143242613,-500.0,0.00061643,120]
[342815536,1732143242623,-500.0,0.00061643,120]
[342815537,1732143242632,-1229.98,0.00061643,120]
[342815538,1732143242642,-500.0,0.00061643,120]
[342815539,1732143242651,-500.0,0.00061643,120]
[342815540,1732143242661,-872.55,0.00061643,120]
[342815541,1732143242671,-656.67,0.00061643,120]
[342815542,1732143242680,-999.09,0.00061643,120]
[342815543,1732143242690,-569.99,0.00061643,120]
[342815544,1732143242699,-709.28,0.00061643,120]
[342815545,1732143242709,-569.41,0.00061643,120]
[342815546,1732143242719,-1489.09,0.00061643,120]
[342815547,1732143242728,-1118.01,0.00061643,120]
[342815548,1732143242737,-500.0,0.00061643,120]
[342815549,1732143242747,-500.0,0.00061643,120]
[342815550,1732143242757,-562.17,0.00061643,120]
[342815551,1732143242766,-500.0,0.00061643,120]
[342815552,1732143242783,-516.5,0.00061643,120]
[342815553,1732143242792,-1042.13,0.00061643,120]
[342815554,1732143242802,-733.47,0.00061643,120]
[342815555,1732143242811,-1033.25,0.00061643,120]
[342815556,1732143242820,-1793.12,0.00061643,120]
[342815557,1732143242830,-861.7,0.00061643,120]
[342815558,1732143242839,-576.17,0.00061643,120]
[342815559,1732143242849,-500.0,0.00061643,120]
[342815560,1732143242858,-500.0,0.00061643,120]
[342815561,1732143242868,-654.65,0.00061643,120]
[342815562,1732143242879,-500.0,0.00061643,120]
[342815563,1732143242889,-557.25,0.00061643,120]
[342815564,1732143242899,-500.0,0.00061643,120]
[342815565,1732143242910,-500.0,0.00061643,120]
[342815566,1732143242919,-988.11,0.00061643,120]
[342815567,1732143242930,-1076.47,0.00061643,120]
[342815568,1732143242942,-674.72531698,0.00061689,120]
[342815569,1732143242953,-245.97244822,0.00061689,120]
[342815570,1732143242962,-300.08402069,0.00061689,120]
[342815571,1732143242971,-150.0,0.00061699,120]
[342815572,1732143242980,-150.0,0.00061716,120]
[342815573,1732143242991,-150.0,0.00061727,120]
[342815574,1732143243001,-674.72531698,0.00061756,120]
[342815575,1732143243012,-245.97244822,0.00061756,120]
[342815576,1732143243023,-300.08402069,0.00061756,120]
[342815577,1732143243032,-27353.16005262,0.00061789,120]
[342815578,1732143243042,-597.23,0.000618,120]
[342815579,1732143243051,-597.34496094,0.000618,120]
[342815580,1732143243060,-674.72531698,0.00061824,120]
[342815581,1732143243070,-245.97244822,0.00061824,120]
[342815582,1732143243079,-300.08402069,0.00061824,120]
[342815583,1732143243089,-150.0,0.00061825,120]
[342815584,1732143243098,-150.0,0.00061843,120]
[342815585,1732143243107,-154983.94921148,0.0006188,30]
[342815586,1732143243117,-150.0,0.00061889,120]
[342815587,1732143243128,-674.72531698,0.00061891,120]
[342815588,1732143243137,-245.97244822,0.00061891,120]
[342815589,1732143243147,-300.08402069,0.00061891,120]
[342815590,1732143243157,-40317.18693399,0.000619,120]
[342815591,1732143243167,-500.0,0.00061917,120]
[342815592,1732143243177,-500.0,0.00061917,120]
[342815593,1732143243187,-1252.22,0.00061917,120]
[342815594,1732143243198,-500.0,0.00061917,120]
[342815595,1732143243208,-576.02,0.00061917,120]
[342815596,1732143243217,-771.31,0.00061917,120]
[342815597,1732143243227,-500.0,0.00061917,120]
[342815598,1732143243236,-500.0,0.00061917,120]
[342815599,1732143243246,-441.63122382,0.00061917,120]
[342815600,1732143243256,-500.0,0.00061917,120]
[342815601,1732143243266,-554.38,0.00061917,120]
[342815602,1732143243277,-222.40716801,0.00061917,120]
[342815603,1732143243286,-601.61,0.00061917,120]
[342815604,1732143243296,-1158.3,0.00061917,120]
[342815605,1732143243305,-500.0,0.00061917,120]
[342815606,1732143243315,-500.0,0.00061917,120]
[342815607,1732143243324,-1261.01,0.00061917,120]
[342815608,1732143243333,-500.0,0.00061917,120]
[342815609,1732143243342,-598.93,0.00061917,120]
[342815610,1732143243351,-500.0,0.00061917,120]
[342815611,1732143243360,-500.0,0.00061917,120]
[342815612,1732143243370,-1006.34,0.00061917,120]
[342815613,1732143243379,-504.43,0.00061917,120]
[342815614,1732143243389,-500.0,0.00061917,120]
[342815615,1732143243398,-500.0,0.00061917,120]
[342815616,1732143243408,-500.0,0.00061917,120]
[342815617,1732143243419,-500.0,0.00061917,120]
[342815618,1732143243430,-1283.37,0.00061917,120]
[342815619,1732143243440,-701.26,0.00061917,120]
[342815620,1732143243450,-1332.5,0.00061917,120]
[342815621,1732143243460,-761.37,0.00061917,120]
[342815622,1732143243470,-500.0,0.00061917,120]
[342815623,1732143243479,-673.21,0.00061917,120]
[342815624,1732143243488,-570.71,0.00061917,120]
[342815625,1732143243498,-688.18,0.00061917,120]
[342815626,1732143243515,-500.0,0.00061917,120]
[342815627,1732143243528,-500.0,0.00061917,120]
[342815628,1732143243538,-874.95,0.00061917,120]
[342815629,1732143243547,-705.26,0.00061917,120]
[342815630,1732143243558,-500.0,0.00061917,120]
[342815631,1732143243569,-862.02,0.00061917,120]
[342815632,1732143243579,-710.13,0.00061917,120]
[342815633,1732143243589,-500.0,0.00061917,120]
[342815634,1732143243600,-575.87,0.00061917,120]
[342815635,1732143243610,-533.41,0.00061917,120]
[342815636,1732143243620,-1044.98,0.00061917,120]
[342815637,1732143243630,-598.39,0.00061917,120]
[342815638,1732143243640,-500.0,0.00061917,120]
[342815639,1732143243650,-876.64,0.00061917,120]
[342815640,1732143243660,-500.0,0.00061917,120]
[342815641,1732143243670,-853.3,0.00061917,120]
[342815642,1732143243681,-929.3,0.00061917,120]
[342815643,1732143243691,-500.0,0.00061917,120]
[342815644,1732143243702,-500.0,0.00061917,120]
[342815645,1732143243712,-839.52,0.00061917,120]
[342815646,1732143243722,-818.09,0.00061917,60]
[342815647,1732143243732,-932.52,0.00061917,120]
[342815648,1732143243741,-500.0,0.00061917,120]
[342815649,1732143243751,-500.0,0.00061917,120]
[342815650,1732143243761,-528.98,0.00061917,120]
[342815651,1732143243773,-500.0,0.00061917,120]
[342815652,1732143243783,-694.38,0.00061917,120]
[342815653,1732143243792,-512.65,0.00061917,120]
[342815654,1732143243803,-520.16334123,0.00061917,120]
[342815655,1732143243813,-1167.24,0.00061917,120]
[342815656,1732143243823,-577.22,0.00061917,120]
[342815657,1732143243832,-786.11,0.00061917,120]
[342815658,1732143243842,-819.5,0.00061917,120]
[342815659,1732143243852,-500.0,0.00061917,120]
[342815660,1732143243862,-500.0,0.00061917,120]
[342815661,1732143243872,-500.0,0.00061917,120]
[342815662,1732143243881,-769.28,0.00061917,120]
[342815663,1732143243892,-500.0,0.00061917,120]
[342815664,1732143243901,-500.0,0.00061917,120]
[342815665,1732143243911,-500.0,0.00061917,120]
[342815666,1732143243921,-598.71,0.00061917,120]
[342815667,1732143243934,-500.0,0.00061917,120]
[342815668,1732143243946,-1024.27,0.00061917,120]
[342815669,1732143243957,-583.69,0.00061917,120]
[342815670,1732143243966,-1242.02,0.00061917,120]
[342815671,1732143243977,-1011.03,0.00061917,120]
[342815672,1732143243987,-500.0,0.00061917,120]
[342815673,1732143243996,-500.0,0.00061917,120]
[342815674,1732143244006,-785.27,0.00061917,120]
[342815675,1732143244016,-1740.08,0.00061917,120]
[342815676,1732143244028,-500.0,0.00061917,120]
[342815677,1732143244037,-500.0,0.00061917,120]
[342815678,1732143244047,-500.0,0.00061917,120]
[342815679,1732143244057,-703.85,0.00061917,120]
[342815680,1732143244067,-500.0,0.00061917,120]
[342815681,1732143244077,-628.65,0.00061917,120]
[342815682,1732143244087,-500.0,0.00061917,120]
[342815683,1732143244097,-500.0,0.00061917,120]
[342815684,1732143244106,-799.65,0.00061917,120]
[342815685,1732143244117,-500.0,0.00061917,120]
[342815686,1732143244132,-821.37,0.00061917,120]
[342815687,1732143244143,-1270.46,0.00061917,120]
[342815688,1732143244153,-500.0,0.00061917,120]
[342815689,1732143244163,-500.0,0.00061917,120]
[342815690,1732143244172,-1026.3,0.00061917,120]
[342815691,1732143244182,-654.97,0.00061917,120]
[342815692,1732143244192,-1162.69,0.00061917,120]
[342815693,1732143244201,-1475.7,0.00061917,120]
[342815694,1732143244211,-500.0,0.00061917,120]
[342815695,1732143244222,-534.81,0.00061917,120]
[342815696,1732143244232,-450.0,0.00061917,120]
[342815697,1732143244242,-536.1,0.00061917,120]
[342815698,1732143244252,-1309.27,0.00061917,120]
[342815699,1732143244261,-556.25,0.00061917,120]
[342815700,1732143244273,-500.0,0.00061917,120]
[342815701,1732143244284,-500.0,0.00061917,120]
[342815702,1732143244294,-500.0,0.00061917,120]
[342815703,1732143244306,-1229.98,0.00061917,120]
[342815704,1732143244318,-500.0,0.00061917,120]
[342815705,1732143244327,-500.0,0.00061917,120]
[342815706,1732143244342,-872.55,0.00061917,120]
[342815707,1732143244352,-656.67,0.00061917,120]
[342815708,1732143244365,-999.09,0.00061917,120]
[342815709,1732143244375,-569.99,0.00061917,120]
[342815710,1732143244387,-709.28,0.00061917,120]
[342815711,1732143244399,-569.41,0.00061917,120]
[342815712,1732143244408,-1489.09,0.00061917,120]
[342815713,1732143244423,-1118.01,0.00061917,120]
[342815714,1732143244432,-500.0,0.00061917,120]
[342815715,1732143244448,-500.0,0.00061917,120]
[342815716,1732143244459,-562.17,0.00061917,120]
[342815717,1732143244468,-500.0,0.00061917,120]
[342815718,1732143244478,-516.5,0.00061917,120]
[342815719,1732143244487,-1042.13,0.00061917,120]
[342815720,1732143244497,-733.47,0.00061917,120]
[342815721,1732143244506,-1033.25,0.00061917,120]
[342815722,1732143244516,-1793.12,0.00061917,120]
[342815723,1732143244527,-861.7,0.00061917,120]
[342815724,1732143244537,-576.17,0.00061917,120]
[342815725,1732143244546,-500.0,0.00061917,120]
[342815726,1732143244556,-500.0,0.00061917,120]
[342815727,1732143244565,-654.65,0.00061917,120]
[342815728,1732143244575,-500.0,0.00061917,120]
[342815729,1732143244585,-557.25,0.00061917,120]
[342815730,1732143244594,-500.0,0.00061917,120]
[342815731,1732143244603,-500.0,0.00061917,120]
[342815732,1732143244614,-988.11,0.00061917,120]
[342815733,1732143244623,-1076.47,0.00061917,120]
[342815734,1732143244632,-150.0,0.00061938,120]
[342815735,1732143244642,-286.04256192,0.00061942,120]
[342815736,1732143244761,-150.0,0.00061951,120]
[342815737,1732143244805,-674.72531698,0.00061958,120]
[342815738,1732143244815,-245.97244822,0.00061958,120]
[342815739,1732143244825,-300.08402069,0.00061958,120]
[342815740,1732143244835,-150.0,0.00061968,120]
[342815741,1732143244844,-50000.0,0.00062,52]
[342815742,1732143244853,-50000.0,0.00062,62]
[342815743,1732143244863,-50000.0,0.00062,42]
[342815744,1732143244872,-615938.304429,0.00062,120]
[342815745,1732143244896,-500.0,0.00056712,120]
[342815746,1732143244905,-31.63822383,0.00062,120]
[342815747,1732143244934,-371.83891861,0.0005726,120]
[342815748,1732143244950,-538.07108139,0.0005726,120]
[342815749,1732143244960,-500.0,0.00058356,120]
[342815750,1732143244970,-205.0267831,0.00058356,120]
[342815751,1732143245259,-300.0,9.6e-05,3]
[342815752,1732143245271,-500.0,0.00041,2]
[342815753,1732143245281,-127.22751103,0.00049502,45]
[342815754,1732143245292,-1268.94891196,0.00049502,45]
[342815755,1732143245304,-1702.67137328,0.00049502,45]
[342815756,1732143245314,-500.0,0.00054794,120]
[342815757,1732143245323,-500.0,0.00054794,120]
[342815758,1732143245333,-500.90497275,0.00054794,120]
[342815759,1732143245343,-851.31,0.00055068,120]
[342815760,1732143245352,-4419.29365397,0.00055068,120]
[342815761,1732143245364,-1086.66634603,0.00055068,120]
[342815762,1732143245374,-5505.96,0.00055342,120]
[342815763,1732143245384,-228.4103667,0.00055342,120]
[342815764,1732143245414,-622.8996333,0.00055342,120]
[342815765,1732143245424,-39.78345832,0.00055616,120]
[342815766,1732143245664,-300.0,9.7e-05,3]
[342815767,1732143245674,-584.50667457,0.00035306,10]
[342815768,1732143245777,-300.0,9.8e-05,3]
[342815769,1732143245786,-383.1034336,0.00035306,10]
[342815770,1732143245798,-468.59532,0.00035306,10]
[342815771,1732143245810,-849.03457183,0.00035306,10]
[342815772,1732143245819,-500.0,0.00043,2]
[342815773,1732143245829,-3098.84779627,0.0004966,45]
[342815774,1732143245839,-500.0,0.00054794,120]
[342815775,1732143245848,-500.0,0.00055068,120]
[342815776,1732143245858,-500.0,0.00055068,120]
[342815777,1732143245868,-500.0,0.00055068,120]
[342815778,1732143245878,-500.0,0.00055342,120]
[342815779,1732143245888,-500.0,0.00055342,120]
[342815780,1732143245899,-460.21654168,0.00055616,120]
[342815781,1732143245909,-5505.96,0.00055616,120]
[342815782,1732143245920,-851.31,0.00055616,120]
[342815783,1732143245930,-151.0,0.00055616,120]
[342815784,1732143245945,-500.0,0.0005589,120]
[342815785,1732143245956,-5505.96,0.0005589,120]
[342815786,1732143245967,-851.31,0.0005589,120]
[342815787,1732143245978,-151.0,0.0005589,120]
[342815788,1732143245988,-500.0,0.00056164,120]
[342815789,1732143245998,-5114.80658331,0.00056164,120]
[342815790,1732143246012,-391.15341669,0.00056164,120]
[342815791,1732143246027,-851.31,0.00056164,120]
[342815792,1732143246038,-500.0,0.00056438,120]
[342815793,1732143246048,-5505.96,0.00056438,120]
[342815794,1732143246058,-851.31,0.00056438,120]
[342815795,1732143246069,-151.0,0.00056438,120]
[342815796,1732143246079,-500.0,0.00056712,120]
[342815797,1732143246090,-5505.96,0.00056712,120]
[342815798,1732143246100,-851.31,0.00056712,120]
[342815799,1732143246110,-151.0,0.00056712,120]
[342815800,1732143246120,-500.0,0.00056986,120]
[342815801,1732143246131,-5505.96,0.00056986,120]
[342815802,1732143246141,-498.59264064,0.00056986,120]
[342815803,1732143246151,-851.31,0.00056986,120]
[342815804,1732143246161,-500.0,0.0005726,120]
[342815805,1732143246171,-5505.96,0.0005726,120]
[342815806,1732143246182,-851.31,0.0005726,120]
[342815807,1732143246192,-151.0,0.0005726,120]
[342815808,1732143246203,-3105.60846617,0.00057534,120]
[342815809,1732143246229,-2023.30153383,0.00057534,120]
[342815810,1732143246238,-18.10179336,0.00057534,120]
[342815811,1732143246607,-951.0,9.9e-05,3]
[342815812,1732143246618,-500.0,0.00054794,120]
[342815813,1732143246627,-250.5,0.00054794,120]
[342815814,1732143246639,-4153.72,0.00054794,120]
[342815815,1732143246648,-130.02000465,0.00054794,120]
[342815816,1732143246659,-402.15999535,0.00054794,120]
[342815817,1732143246669,-403.42226884,0.00055068,120]
[342815818,1732143246683,-96.57773116,0.00055068,120]
[342815819,1732143246693,-3996.63619781,0.00055068,120]
[342815820,1732143246709,-407.58380219,0.00055068,120]
[342815821,1732143246718,-189.06922198,0.00055068,120]
[342815822,1732143247107,-343.11077802,0.00055068,120]
[342815823,1732143247118,-500.0,0.00055342,120]
[342815824,1732143247128,-30.63634613,0.00055342,120]
[342815825,1732143247141,-469.36365387,0.00055342,120]
[342815826,1732143247151,-88.46858623,0.00055342,120]
[342815827,1732143247162,-443.71141377,0.00055342,120]
[342815828,1732143247172,-262.29757194,0.00055342,120]
[342815829,1732143247184,-383.87296915,0.00055342,120]
[342815830,1732143247196,-3758.04945891,0.00055342,120]
[342815831,1732143247207,-6.89813461,0.00055616,120]
[342815832,1732143247219,-493.10186539,0.00055616,120]
[342815833,1732143247229,-183.99902955,0.00055616,120]
[342815834,1732143247241,-316.00097045,0.00055616,120]
[342815835,1732143247251,-500.0,0.00055616,120]
[342815836,1732143247261,-350.515162,0.00055616,120]
[342815837,1732143247270,-500.0,0.00055616,120]
[342815838,1732143247280,-532.18,0.00055616,120]
[342815839,1732143247290,-222.1644871,0.0005589,120]
[342815840,1732143247302,-277.8355129,0.0005589,120]
[342815841,1732143247312,-122.1644871,0.0005589,120]
[342815842,1732143247331,-940.51,0.00055616,120]
[342815843,1732143247343,-3463.71,0.00055616,120]
[342815844,1732143247353,-377.8355129,0.0005589,120]
[342815845,1732143247363,-500.0,0.0005589,120]
[342815846,1732143247373,-203.76690713,0.0005589,120]
[342815847,1732143247384,-296.23309287,0.0005589,120]
[342815848,1732143247394,-350.515162,0.0005589,120]
[342815849,1732143247405,-500.0,0.00056164,120]
[342815850,1732143247415,-500.0,0.00056164,120]
[342815851,1732143247426,-500.0,0.00056164,120]
[342815852,1732143247436,-500.0,0.00056164,120]
[342815853,1732143247446,-500.0,0.00056438,120]
[342815854,1732143247456,-500.0,0.00056438,120]
[342815855,1732143247466,-500.0,0.00056438,120]
[342815856,1732143247476,-350.515162,0.00056438,120]
[342815857,1732143247486,-500.0,0.00056438,120]
[342815858,1732143247495,-525.4,0.00056712,120]
[342815859,1732143247505,-891.80820664,0.00057534,120]
[342815860,1732143247514,-500.0,0.00057534,120]
[342815861,1732143247524,-2037.71302876,0.00057534,120]
[342815862,1732143247544,-550.31858725,0.0005,120]
[342815863,1732143247556,-1529.65936875,0.0005,120]
[342815864,1732143247570,-382.59197051,0.0005,120]
[342815865,1732143247585,-674.79429573,0.0005,120]
[342815866,1732143247601,-3690.46625153,0.0005,120]
[342815867,1732143247615,-3723.55952623,0.0005,120]
[342815868,1732143247624,-309.2409069,0.00057534,120]
[342815869,1732143247636,-618.3903605,0.00057534,120]
[342815870,1732143247648,-1415.44956061,0.00057534,120]
[342815871,1732143247661,-1125.16614323,0.00057534,120]
[342815872,1732143247672,-851.31,0.00057534,120]
[342815873,1732143247682,-151.0,0.00057534,120]
[342815874,1732143247691,-235.528773,0.00057808,120]
[342815875,1732143247701,-116.96592989,0.00057808,120]
[342815876,1732143247712,-1438.24438796,0.00057808,120]
[342815877,1732143247728,-288.51371173,0.00057808,120]
[342815878,1732143247740,-438.25298,0.00057808,120]
[342815879,1732143247752,-476.6622116,0.00057808,120]
[342815880,1732143247763,-2082.9365688,0.00057808,120]
[342815881,1732143247776,-287.33421002,0.00057808,120]
[342815882,1732143247787,-121.80772752,0.00057808,120]
[342815883,1732143247807,-532.18,0.0005589,120]
[342815884,1732143247818,-350.515162,0.00056712,120]
[342815885,1732143247828,-159.7386372,0.00057808,120]
[342815886,1732143247839,-431.22961645,0.00057808,120]
[342815887,1732143247851,-197.13401883,0.00057808,120]
[342815888,1732143247861,-5505.96,0.00057808,120]
[342815889,1732143247871,-500.0,0.00057808,120]
[342815890,1732143247881,-851.31,0.00057808,120]
[342815891,1732143247891,-500.0,0.00058082,120]
[342815892,1732143247900,-5128.91,0.00058082,120]
[342815893,1732143247910,-1087.62382179,0.00058082,120]
[342815894,1732143247926,-500.0,0.00056712,120]
[342815895,1732143247937,-135.84286283,0.00058082,120]
[342815896,1732143247951,-4282.49331538,0.00058082,120]
[342815897,1732143247961,-500.0,0.00058082,120]
[342815898,1732143247971,-909.91,0.00058082,120]
[342815899,1732143247981,-851.31,0.00058082,120]
[342815900,1732143247991,-3848.26585829,0.00058356,120]
[342815901,1732143248003,-1060.32735861,0.00058356,120]
[342815902,1732143248013,-1262.65898015,0.00058356,120]
[342815903,1732143248026,-2262.87101985,0.00058356,120]
[342815904,1732143248036,-500.0,0.00058356,120]
[342815905,1732143248046,-4988.9284812,0.00058356,120]
[342815906,1732143248057,-139.9815188,0.00058356,120]
[342815907,1732143248067,-2143.44066349,0.00058356,120]
[342815908,1732143248080,-3362.51933651,0.00058356,120]
[342815909,1732143248089,-500.0,0.00058356,120]
[342815910,1732143248100,-909.91,0.00058356,120]
[342815911,1732143248109,-851.31,0.00058356,120]
[342815912,1732143248119,-500.0,0.0005863,120]
[342815913,1732143248129,-2689.87580673,0.0005863,120]
[342815914,1732143248145,-4404.22,0.0005589,120]
[342815915,1732143248154,-2423.74419327,0.0005863,120]
[342815916,1732143248163,-771.54407018,0.0005863,120]
[342815917,1732143248175,-295.25514135,0.0005863,120]
[342815918,1732143248187,-2458.73078847,0.0005863,120]
[342815919,1732143248196,-500.0,0.0005863,120]
[342815920,1732143248206,-5128.91,0.0005863,120]
[342815921,1732143248215,-3281.36828569,0.0005863,120]
[342815922,1732143627222,2500.0,0.0002479,120]
[342815923,1732143771314,1000.0,0.00022,30]
[342815924,1732143945175,-150.0,9.899e-05,2]
[342815925,1732143945198,-47.07547717,9.9e-05,2]
[342815926,1732143950086,-299.34857463,9.9e-05,2]
[342815927,1732144025080,-300.0,9.899e-05,2]
[342815928,1732144025101,-588.0293482,9.9e-05,2]
[342815929,1732144025122,-2647.39249227,9.9e-05,2]
[342815931,1732144052087,-1595.96876813,9.9e-05,2]
[342815932,1732144052115,-659.75050335,9.9e-05,2]
[342815951,1732144231498,-300.0,9.899e-05,2]
[342815952,1732144231508,-2121.26105739,9.9e-05,2]
[342815953,1732144231519,-1615.03160098,9.9e-05,2]
[342815954,1732144231531,-9746.15957788,9.9e-05,2]
[342815955,1732144231541,-1001.2487,9.9e-05,2]
[342815956,1732144231551,-150.0,0.0001088,2]
[342815957,1732144231561,-420.0,0.00010889,2]
[342815958,1732144231571,-587.0,0.00011978,2]
[342815959,1732144231580,-2757.0,0.00015,2]
[342815960,1732144231590,-152.55,0.00015342,2]
[342815961,1732144231600,-822.395,0.00028887,21]
[342815962,1732144231609,-163.40026205,0.00028887,21]
[342815963,1732144231621,-151.0,0.0003,120]
[342815964,1732144231631,-250.0,0.00031,2]
[342815965,1732144231640,-300.0,0.00033,2]
[342815966,1732144231651,-350.0,0.00035,2]
[342815967,1732144231661,-152.55,0.00035616,2]
[342815968,1732144231671,-400.0,0.00037,2]
[342815969,1732144231681,-450.0,0.00039,2]
[342815970,1732144231691,-229.0,0.0004,2]
[342815971,1732144231700,-500.0,0.00041,2]
[342815972,1732144231709,-433.41,0.00041557,30]
[342815973,1732144231719,-150.0,0.00041557,30]
[342815974,1732144231728,-187.09,0.00041557,30]
[342815975,1732144231738,-150.0,0.00041557,30]
[342815976,1732144231748,-150.0,0.00041557,30]
[342815977,1732144231757,-433.41,0.00041557,30]
[342815978,1732144231767,-433.41,0.00041557,30]
[342815979,1732144231776,-150.0,0.00041557,30]
[342815980,1732144231786,-150.0,0.00041557,30]
[342815981,1732144231796,-150.0,0.00041557,30]
[342815982,1732144231805,-433.41,0.00041557,30]
[342815983,1732144231814,-433.41,0.00041557,30]
[342815984,1732144231823,-150.0,0.00041557,30]
[342815985,1732144231833,-431.43,0.00041557,30]
[342815986,1732144231842,-150.0,0.00041557,30]
[342815987,1732144231851,-550.0,0.00043,2]
[342815988,1732144231861,-218.25,0.0004419,2]
[342815989,1732144231872,-2000.0,0.00044643,120]
[342815990,1732144231882,-240.98672531,0.00045,2]
[342815991,1732144231894,-359.01327469,0.00045,2]
[342815992,1732144231903,-151.0,0.00045014,120]
[342815993,1732144231914,-250.0,0.00045022,2]
[342815994,1732144231925,-150.0,0.00045023,2]
[342815995,1732144231934,-250.0,0.00045023,2]
[342815996,1732144231944,-250.0,0.00045326,120]
[342815997,1732144231954,-200.0,0.00045487,2]
[342815998,1732144231964,-1000.0,0.00045579,2]
[342815999,1732144231973,-1500.0,0.00045684,120]
[342816000,1732144231982,-169.38,0.00046165,2]
[342816001,1732144231991,-250.0,0.00046237,120]
[342816002,1732144232001,-817.76752537,0.00046394,120]
[342816003,1732144232021,-1933.23247463,0.00046394,120]
[342816004,1732144232031,-218.25,0.00046454,2]
[342816005,1732144232041,-223.67822035,0.000468,30]
[342816006,1732144232052,-776.32177965,0.000468,30]
[342816007,1732144232062,-650.0,0.00047,2]
[342816008,1732144232071,-1000.0,0.00047084,120]
[342816009,1732144232081,-199.88,0.0004753,120]
[342816010,1732144232091,-164.07,0.0004799,100]
[342816011,1732144232101,-2017.9943,0.00048676,2]
[342816012,1732144232111,-2683.3948,0.00048699,2]
[342816013,1732144232122,-235.93342914,0.000487,15]
[342816014,1732144232132,-4205.01688176,0.000487,15]
[342816015,1732144232142,-308.5205,0.00048717,2]
[342816016,1732144232151,-6589.20830945,0.00048717,2]
[342816017,1732144232167,-6023.72737881,0.00048717,2]
[342816018,1732144232179,-3990.15331174,0.00048717,2]
[342816020,1732144232189,-218.25,0.00048718,2]
[342816022,1732144232199,-200.0,0.00048723,2]
[342816023,1732144232209,-472.79124979,0.0004873,2]
[342816024,1732144232223,-516.47463262,0.0004873,2]
[342816025,1732144232233,-1276.56913354,0.00048734,2]
[342816026,1732144232245,-1484.79464744,0.00048734,2]
[342816027,1732144232255,-2188.16613641,0.00048735,2]
[342816028,1732144232267,-573.19764457,0.00048735,2]
[342816029,1732144232276,-316.77013733,0.00048736,2]
[342816030,1732144232286,-316.77013733,0.00048744,2]
[342816031,1732144232298,-200.0,0.00048751,2]
[342816032,1732144232308,-4837.7456009,0.00048755,2]
[342816033,1732144232335,-5023.54568336,0.00048755,2]
[342816034,1732144232346,-6220.0,0.00048755,2]
[342816035,1732144232359,-397.92779334,0.00048755,2]
[342816036,1732144232376,-519.86839141,0.00048755,2]
[342816037,1732144232387,-2275.93278,0.00048755,2]